fUST/lending_fUST_20251209
["ID","MTS","AMOUNT","RATE_DAILY","PERIOD"]
[397995749,1765266646333,-5117.32,7.123e-05,2]
[397995751,1765266646343,-922.07,7.123e-05,2]
[397995753,1765266646352,-500.0,7.123e-05,2]
[397995754,1765266646361,-500.89063206,7.123e-05,2]
[397995755,1765266646370,-500.0,7.123e-05,2]
[397995756,1765266646379,-618.01,7.123e-05,2]
[397995757,1765266646388,-500.4262166,7.123e-05,2]
[397995758,1765266646398,-1194.08,7.123e-05,2]
[397995759,1765266646406,-500.0,7.123e-05,2]
[397995760,1765266646415,-3549.84,7.123e-05,2]
[397995762,1765266646424,-1027.82,7.123e-05,2]
[397995764,1765266646433,-500.0,7.123e-05,2]
[397995766,1765266646442,-500.0,7.123e-05,2]
[397995769,1765266646451,-585.77,7.123e-05,2]
[397995771,1765266646460,-2141.29,7.123e-05,2]
[397995773,1765266646469,-500.0,7.123e-05,2]
[397995774,1765266646479,-1140.41,7.123e-05,2]
[397995776,1765266646488,-502.26450409,7.123e-05,2]
[397995778,1765266646497,-2209.11,7.123e-05,2]
[397995780,1765266646505,-6965.17,7.123e-05,2]
[397995782,1765266646514,-500.0,7.123e-05,2]
[397995784,1765266646523,-647.01,7.123e-05,2]
[397995786,1765266646532,-1214.81,7.123e-05,2]
[397995788,1765266646541,-619.02445776,7.123e-05,2]
[397995790,1765266646551,-1165.87,7.123e-05,2]
[397995792,1765266646560,-525.7,7.123e-05,2]
[397995794,1765266646569,-500.0,7.123e-05,2]
[397995796,1765266646578,-1312.75,7.123e-05,2]
[397995798,1765266646587,-1033.78,7.123e-05,2]
[397995800,1765266646596,-500.0,7.123e-05,2]
[397995802,1765266646605,-500.0,7.123e-05,2]
[397995804,1765266646614,-500.0,7.123e-05,2]
[397995806,1765266646627,-500.0,7.123e-05,2]
[397995808,1765266646636,-501.59415547,7.123e-05,2]
[397995810,1765266646645,-500.0,7.123e-05,2]
[397995812,1765266646654,-2220.07,7.123e-05,2]
[397995814,1765266646663,-500.0,7.123e-05,2]
[397995816,1765266646671,-4324.93,7.123e-05,2]
[397995818,1765266646680,-500.0,7.123e-05,2]
[397995821,1765266646689,-500.0,7.123e-05,2]
[397995823,1765266646699,-546.24,7.123e-05,2]
[397995825,1765266646708,-160.39614639,7.123e-05,2]
[397995827,1765266646718,-500.0,7.123e-05,2]
[397995829,1765266646727,-501.28528098,7.123e-05,2]
[397995831,1765266646736,-1329.78,7.123e-05,2]
[397995833,1765266646745,-500.0,7.123e-05,2]
[397995835,1765266646754,-1539.86,7.123e-05,2]
[397995837,1765266646763,-500.66143608,7.123e-05,2]
[397995839,1765266646773,-1008.9,7.123e-05,2]
[397995840,1765266646782,-501.76884996,7.123e-05,2]
[397995842,1765266646792,-500.0,7.123e-05,2]
[397995844,1765266646801,-1234.5,7.123e-05,2]
[397995846,1765266646811,-151.0,7.123e-05,2]
[397995849,1765266646820,-500.0,7.123e-05,2]
[397995851,1765266646830,-238.37358599,7.123e-05,2]
[397995853,1765266646839,-500.88551934,7.123e-05,2]
[397995854,1765266646848,-1715.49,7.123e-05,2]
[397995857,1765266646858,-1044.91,7.123e-05,2]
[397995859,1765266646867,-619.35,7.123e-05,2]
[397995861,1765266646877,-1508.52,7.123e-05,2]
[397995863,1765266646887,-500.0,7.123e-05,2]
[397995865,1765266646896,-500.0,7.123e-05,2]
[397995867,1765266646906,-1735.18,7.123e-05,2]
[397995869,1765266646915,-6249.05,7.123e-05,2]
[397995871,1765266646924,-808.72,7.123e-05,2]
[397995873,1765266646935,-502.07407129,7.123e-05,2]
[397995875,1765266646945,-759.24183249,7.123e-05,2]
[397997349,1765266761147,-234.332,6.197e-05,2]
[397997350,1765266761177,-300.0,6.322e-05,2]
[397997351,1765266926595,195.14,0.00012727,30]
[397997352,1765266927006,390.28,0.00013884,30]
[397997353,1765266951910,272.0,0.00019,120]
[397997354,1765267007037,191.95,0.00012789,30]
[397997355,1765267007454,383.89,0.00013951,30]
[397997356,1765267087253,188.81,0.00012838,30]
[397997357,1765267087655,377.61,0.00014005,30]
[397997359,1765267167307,185.72,0.00012847,30]
[397997360,1765267167703,371.43,0.00014015,30]
[397997361,1765267246787,182.68,0.00012782,30]
[397997362,1765267247205,365.35,0.00013944,30]
[397997363,1765267325550,179.69,0.00012801,30]
[397997364,1765267325960,359.38,0.00013964,30]
[397997365,1765267405106,176.75,0.00010766,30]
[397997366,1765267405499,353.5,0.00011745,30]
[397997367,1765267405925,530.24,0.00012723,30]
[397997368,1765267406427,706.99,0.00013702,30]
[397997369,1765267483589,167.11,0.00010766,30]
[397997370,1765267483997,334.21,0.00011744,30]
[397997371,1765267484392,501.32,0.00012723,30]
[397997372,1765267484834,668.43,0.00013702,30]
[397997373,1765267514099,-1200.0,5.591e-05,2]
[397997374,1765267514162,-6100.01,5.592e-05,2]
[397997375,1765267515011,-3434.627654,5.592e-05,2]
[397997376,1765267515046,-284.59448396,5.894e-05,2]
[397997377,1765267515079,-881.56572408,6.15e-05,2]
[397997378,1765267515177,-798.43427592,6.15e-05,2]
[397997379,1765267515756,-300.0,6.193e-05,2]
[397997380,1765267515796,-1200.0,6.195e-05,2]
[397997381,1765267515836,-300.0,6.195e-05,2]
[397997382,1765267515870,-187.466,6.197e-05,2]
[397997383,1765267515908,-510.0,6.321e-05,2]
[397997385,1765267562105,157.99,0.00012489,30]
[397997386,1765267641925,157.13,0.00013507,30]
[397997387,1765267745106,-175.64861453,6.222e-05,2]
[397997388,1765267750170,-124.35138547,6.222e-05,2]
[397997389,1765267750202,-239.16130992,6.223e-05,2]
[397997390,1765267773102,-1424.45881463,6.223e-05,2]
[397997426,1765267832279,-300.0,6.222e-05,2]
[397997428,1765267832288,-1200.0,6.222e-05,2]
[397997430,1765267832297,-509.0,6.223e-05,2]
[397997432,1765267832307,-8765.39644028,6.223e-05,2]
[397997446,1765267832422,-1946.20518151,6.223e-05,2]
[397997535,1765267838563,-1865.47717774,6.223e-05,2]
[397997538,1765267838575,-5759.32107592,6.223e-05,2]
[397997540,1765267838583,-278.90259428,6.323e-05,2]
[397997542,1765267838593,-89.4706051,6.398e-05,3]
[397997738,1765267840642,-160.5293949,6.398e-05,3]
[397997740,1765267840652,-255.82232218,6.448e-05,2]
[397997756,1765267840792,-44.17767782,6.448e-05,2]
[397997758,1765267840802,-300.0,6.448e-05,2]
[397997760,1765267840812,-300.0,6.448e-05,2]
[397997762,1765267840820,-300.0,6.448e-05,2]
[397997764,1765267840830,-300.0,6.448e-05,2]
[397997766,1765267840839,-300.0,6.448e-05,2]
[397997768,1765267840848,-300.0,6.448e-05,2]
[397997770,1765267840858,-300.0,6.448e-05,2]
[397997772,1765267840867,-300.0,6.448e-05,2]
[397997774,1765267840876,-300.0,6.448e-05,2]
[397997776,1765267840885,-300.0,6.448e-05,2]
[397997778,1765267840895,-300.0,6.448e-05,2]
[397997780,1765267840905,-300.0,6.448e-05,2]
[397997782,1765267840914,-300.0,6.448e-05,2]
[397997784,1765267840923,-300.0,6.448e-05,2]
[397997786,1765267840933,-600.0,6.448e-05,2]
[397997788,1765267840943,-174.53600699,6.448e-05,2]
[397997790,1765267840952,-150.0,6.672e-05,2]
[397997792,1765267840962,-150.159,6.672e-05,2]
[397997794,1765267840971,-1360.0,6.672e-05,2]
[397997796,1765267840980,-2156.0,6.672e-05,2]
[397997798,1765267840988,-631.0,6.672e-05,2]
[397997800,1765267840997,-303.1249036,6.68e-05,2]
[397997802,1765267841007,-302.0333601,6.68e-05,2]
[397997804,1765267841016,-596.9515814,6.77e-05,2]
[397997806,1765267841026,-420.0,6.844e-05,2]
[397997808,1765267841036,-570.0,6.844e-05,2]
[397997811,1765267841045,-409.12154069,6.923e-05,2]
[397997813,1765267841054,-736.41877324,6.923e-05,2]
[397997815,1765267841064,-1309.18893021,6.923e-05,2]
[397997817,1765267841073,-2045.60770345,6.923e-05,2]
[397997819,1765267841083,-183.79449392,6.923e-05,2]
[397997820,1765267841092,-330.83008905,6.923e-05,2]
[397997822,1765267841101,-588.14238053,6.923e-05,2]
[397997825,1765267841111,-1945.76923429,6.955e-05,2]
[397997827,1765267841120,-2579.17784983,7.018e-05,2]
[397997828,1765267841129,-1945.76923429,7.087e-05,2]
[397997830,1765267841138,-720.0,7.093e-05,2]
[397997833,1765267841148,-304.5654218,7.1e-05,2]
[397997834,1765267841157,-302.0333601,7.1e-05,2]
[397997837,1765267841167,-347.30356795,7.111e-05,2]
[397997838,1765267841176,-250.0,7.122e-05,2]
[397997841,1765267841186,-501.57726876,7.123e-05,2]
[397997843,1765267841195,-5359.1937963,7.123e-05,2]
[397997845,1765267841204,-500.44449471,7.123e-05,2]
[397997846,1765267841213,-500.0,7.123e-05,2]
[397997848,1765267841223,-500.0,7.123e-05,2]
[397997851,1765267841233,-500.0,7.123e-05,2]
[397997853,1765267841242,-500.0,7.123e-05,2]
[397997855,1765267841252,-1364.62,7.123e-05,2]
[397997857,1765267841261,-500.0,7.123e-05,2]
[397997859,1765267841270,-500.0,7.123e-05,2]
[397997861,1765267841280,-500.0,7.123e-05,2]
[397997863,1765267841289,-777.71,7.123e-05,2]
[397997864,1765267841299,-500.0,7.123e-05,2]
[397997866,1765267841308,-500.0,7.123e-05,2]
[397997869,1765267841323,-1000.51,7.123e-05,2]
[397997871,1765267841332,-500.0,7.123e-05,2]
[397997873,1765267841341,-500.0,7.123e-05,2]
[397997875,1765267841351,-546.51,7.123e-05,2]
[397997877,1765267841361,-500.0,7.123e-05,2]
[397997879,1765267841371,-791.01,7.123e-05,2]
[397997881,1765267841381,-500.0,7.123e-05,2]
[397997883,1765267841390,-722.24,7.123e-05,2]
[397997885,1765267841400,-500.0,7.123e-05,2]
[397997887,1765267841410,-500.0,7.123e-05,2]
[397997889,1765267841419,-500.0,7.123e-05,2]
[397997891,1765267841428,-500.0,7.123e-05,2]
[397997893,1765267841438,-500.0,7.123e-05,2]
[397997895,1765267841447,-515.19,7.123e-05,2]
[397997897,1765267841457,-572.41,7.123e-05,2]
[397997899,1765267841465,-630.41,7.123e-05,2]
[397997901,1765267841475,-1519.75,7.123e-05,2]
[397997903,1765267841485,-841.9,7.123e-05,2]
[397997905,1765267841495,-500.0,7.123e-05,2]
[397997907,1765267841504,-500.0,7.123e-05,2]
[397997909,1765267841513,-500.0,7.123e-05,2]
[397997911,1765267841522,-500.84880374,7.123e-05,2]
[397997912,1765267841535,-914.84,7.123e-05,2]
[397997915,1765267841545,-500.0,7.123e-05,2]
[397997917,1765267841554,-544.91,7.123e-05,2]
[397997919,1765267841564,-500.0,7.123e-05,2]
[397997921,1765267841573,-480.56963879,7.123e-05,2]
[397997923,1765267841582,-566.18,7.123e-05,2]
[397997925,1765267841592,-533.44000062,7.123e-05,2]
[397997927,1765267841601,-546.31,7.123e-05,2]
[397997929,1765267841610,-500.0,7.123e-05,2]
[397997931,1765267841620,-1039.1,7.123e-05,2]
[397997932,1765267841629,-500.0,7.123e-05,2]
[397997935,1765267841639,-565.16,7.123e-05,2]
[397997937,1765267841648,-500.0,7.123e-05,2]
[397997938,1765267841658,-1250.27,7.123e-05,2]
[397997941,1765267841667,-500.0,7.123e-05,2]
[397997943,1765267841677,-501.9310442,7.123e-05,2]
[397997945,1765267841686,-500.0,7.123e-05,2]
[397997947,1765267841695,-1265.67,7.123e-05,2]
[397997949,1765267841704,-500.0,7.123e-05,2]
[397997951,1765267841713,-973.93,7.123e-05,2]
[397997953,1765267841722,-500.0,7.123e-05,2]
[397997955,1765267841732,-500.0,7.123e-05,2]
[397997957,1765267841741,-500.0,7.123e-05,2]
[397997959,1765267841750,-646.94119163,7.123e-05,2]
[397997961,1765267841759,-500.0,7.123e-05,2]
[397997963,1765267841769,-261.2,7.123e-05,2]
[397997965,1765267841778,-500.0,7.123e-05,2]
[397997967,1765267841787,-500.54540215,7.123e-05,2]
[397997969,1765267841796,-500.0,7.123e-05,2]
[397997971,1765267841806,-500.0,7.123e-05,2]
[397997973,1765267841815,-500.0,7.123e-05,2]
[397997975,1765267841824,-500.0,7.123e-05,2]
[397997977,1765267841834,-500.0,7.123e-05,2]
[397997979,1765267841843,-500.0,7.123e-05,2]
[397997981,1765267841854,-500.0,7.123e-05,2]
[397997983,1765267841863,-500.0,7.123e-05,2]
[397997985,1765267841873,-707.68,7.123e-05,2]
[397997987,1765267841883,-826.6,7.123e-05,2]
[397997989,1765267841892,-500.0,7.123e-05,2]
[397997991,1765267841902,-500.0,7.123e-05,2]
[397997992,1765267841911,-500.0,7.123e-05,2]
[397997993,1765267841921,-500.0,7.123e-05,2]
[397997994,1765267841930,-500.0,7.123e-05,2]
[397997995,1765267841940,-500.0,7.123e-05,2]
[397997996,1765267841949,-500.0,7.123e-05,2]
[397997997,1765267841959,-500.0,7.123e-05,2]
[397997998,1765267841969,-500.0,7.123e-05,2]
[397997999,1765267841978,-500.0,7.123e-05,2]
[397998000,1765267841988,-500.0,7.123e-05,2]
[397998001,1765267841997,-511.86,7.123e-05,2]
[397998002,1765267842007,-837.62,7.123e-05,2]
[397998003,1765267842016,-678.94,7.123e-05,2]
[397998004,1765267842026,-500.0,7.123e-05,2]
[397998005,1765267842035,-501.2180451,7.123e-05,2]
[397998006,1765267842045,-522.17,7.123e-05,2]
[397998007,1765267842054,-500.0,7.123e-05,2]
[397998008,1765267842063,-500.0,7.123e-05,2]
[397998009,1765267842073,-529.15,7.123e-05,2]
[397998010,1765267842082,-500.46752743,7.123e-05,2]
[397998011,1765267842091,-500.0,7.123e-05,2]
[397998012,1765267842101,-500.0,7.123e-05,2]
[397998013,1765267842115,-405.36510902,7.123e-05,2]
[397998014,1765267842125,-943.76,7.123e-05,2]
[397998016,1765267842134,-500.0,7.123e-05,2]
[397998018,1765267842143,-500.0,7.123e-05,2]
[397998020,1765267842152,-3032.14256829,7.123e-05,2]
[397998131,1765267843363,-385.84046374,7.119e-05,2]
[397998133,1765267843378,-1100.46743171,7.123e-05,2]
[397998145,1765267843612,-562.1,7.123e-05,2]
[397998146,1765267843622,-500.0,7.123e-05,2]
[397998147,1765267843632,-500.0,7.123e-05,2]
[397998148,1765267843641,-500.0,7.123e-05,2]
[397998149,1765267843652,-500.0,7.123e-05,2]
[397998150,1765267843662,-500.64386471,7.123e-05,2]
[397998152,1765267843671,-500.0,7.123e-05,2]
[397998154,1765267843680,-711.54,7.123e-05,2]
[397998156,1765267843690,-618.78,7.123e-05,2]
[397998158,1765267843699,-854.23,7.123e-05,2]
[397998160,1765267843708,-500.0,7.123e-05,2]
[397998162,1765267843718,-500.0,7.123e-05,2]
[397998164,1765267843727,-500.0,7.123e-05,2]
[397998166,1765267843736,-1945.2,7.123e-05,2]
[397998168,1765267843745,-500.0,7.123e-05,2]
[397998170,1765267843755,-500.0,7.123e-05,2]
[397998172,1765267843765,-504.83860746,7.123e-05,2]
[397998174,1765267843774,-1092.89,7.123e-05,2]
[397998177,1765267843783,-560.86,7.123e-05,2]
[397998179,1765267843793,-858.72,7.123e-05,2]
[397998181,1765267843802,-500.0,7.123e-05,2]
[397998183,1765267843812,-1281.28,7.123e-05,2]
[397998184,1765267843821,-1840.97,7.123e-05,2]
[397998186,1765267843830,-620.05,7.123e-05,2]
[397998188,1765267843840,-740.9,7.123e-05,2]
[397998191,1765267843849,-500.0,7.123e-05,2]
[397998193,1765267843858,-500.0,7.123e-05,2]
[397998194,1765267843867,-990.71,7.123e-05,2]
[397998197,1765267843877,-500.0,7.123e-05,2]
[397998198,1765267843886,-500.0,7.123e-05,2]
[397998200,1765267843896,-500.0,7.123e-05,2]
[397998202,1765267843906,-500.0,7.123e-05,2]
[397998204,1765267843915,-957.34,7.123e-05,2]
[397998206,1765267843924,-500.0,7.123e-05,2]
[397998208,1765267843934,-917.15,7.123e-05,2]
[397998211,1765267843943,-523.48,7.123e-05,2]
[397998212,1765267843952,-500.0,7.123e-05,2]
[397998214,1765267843961,-606.32,7.123e-05,2]
[397998216,1765267843971,-500.0,7.123e-05,2]
[397998218,1765267843981,-500.0,7.123e-05,2]
[397998220,1765267843991,-912.42,7.123e-05,2]
[397998223,1765267844000,-456.24237361,7.123e-05,2]
[397998224,1765267844010,-500.0,7.123e-05,2]
[397998226,1765267844019,-500.26659384,7.123e-05,2]
[397998228,1765267844029,-766.07,7.123e-05,2]
[397998230,1765267844038,-1200.77,7.123e-05,2]
[397998232,1765267844047,-500.0,7.123e-05,2]
[397998235,1765267844057,-500.0,7.123e-05,2]
[397998237,1765267844067,-797.3,7.123e-05,2]
[397998239,1765267844076,-887.78,7.123e-05,2]
[397998241,1765267844086,-501.5143613,7.123e-05,2]
[397998242,1765267844095,-541.17,7.123e-05,2]
[397998245,1765267844105,-1252.68,7.123e-05,2]
[397998246,1765267844122,-226.57215515,7.123e-05,2]
[397998248,1765267844133,-500.0,7.123e-05,2]
[397998250,1765267844142,-507.70350081,7.123e-05,2]
[397998252,1765267844151,-575.08,7.123e-05,2]
[397998254,1765267844160,-500.0,7.123e-05,2]
[397998256,1765267844169,-500.0,7.123e-05,2]
[397998258,1765267844178,-684.11,7.123e-05,2]
[397998260,1765267844187,-453.0,7.123e-05,2]
[397998262,1765267844196,-500.0,7.123e-05,2]
[397998264,1765267844206,-500.0,7.123e-05,2]
[397998266,1765267844215,-839.33,7.123e-05,2]
[397998268,1765267844225,-151.0,7.123e-05,2]
[397998270,1765267844235,-1357.72,7.123e-05,2]
[397998272,1765267844244,-501.25,7.123e-05,2]
[397998274,1765267844255,-500.0,7.123e-05,2]
[397998276,1765267844264,-501.55444812,7.123e-05,2]
[397998278,1765267844273,-500.0,7.123e-05,2]
[397998280,1765267844283,-500.0,7.123e-05,2]
[397998282,1765267844292,-500.0,7.123e-05,2]
[397998284,1765267844301,-700.81,7.123e-05,2]
[397998286,1765267844310,-613.15,7.123e-05,2]
[397998288,1765267844319,-500.0,7.123e-05,2]
[397998290,1765267844329,-1312.96,7.123e-05,2]
[397998292,1765267844338,-1181.46,7.123e-05,2]
[397998294,1765267844347,-500.0,7.123e-05,2]
[397998296,1765267844356,-500.0,7.123e-05,2]
[397998298,1765267844366,-500.0,7.123e-05,2]
[397998300,1765267844375,-500.0,7.123e-05,2]
[397998302,1765267844384,-503.03444056,7.123e-05,2]
[397998304,1765267844393,-1942.7,7.123e-05,2]
[397998306,1765267844402,-838.4,7.123e-05,2]
[397998308,1765267844411,-671.64,7.123e-05,2]
[397998310,1765267844420,-780.09,7.123e-05,2]
[397998312,1765267844429,-500.0,7.123e-05,2]
[397998314,1765267844438,-628.04,7.123e-05,2]
[397998316,1765267844447,-1073.58,7.123e-05,2]
[397998319,1765267844456,-500.0,7.123e-05,2]
[397998321,1765267844465,-500.0,7.123e-05,2]
[397998322,1765267844474,-761.59,7.123e-05,2]
[397998325,1765267844483,-689.83,7.123e-05,2]
[397998326,1765267844492,-595.6,7.123e-05,2]
[397998329,1765267844501,-698.4,7.123e-05,2]
[397998330,1765267844511,-501.0088056,7.123e-05,2]
[397998333,1765267844520,-500.0,7.123e-05,2]
[397998335,1765267844529,-500.0,7.123e-05,2]
[397998337,1765267844538,-592.19,7.123e-05,2]
[397998339,1765267844547,-2090.31,7.123e-05,2]
[397998341,1765267844556,-392.93203435,7.123e-05,2]
[397998342,1765267844566,-744.48,7.123e-05,2]
[397998344,1765267844575,-2423.17,7.123e-05,2]
[397998346,1765267844584,-500.0,7.123e-05,2]
[397998348,1765267844593,-159.84,7.123e-05,2]
[397998350,1765267844602,-1156.0,7.123e-05,2]
[397998353,1765267844611,-557.11,7.123e-05,2]
[397998355,1765267844627,-500.0,7.123e-05,2]
[397998357,1765267844638,-500.0,7.123e-05,2]
[397998359,1765267844647,-500.0,7.123e-05,2]
[397998361,1765267844656,-506.52,7.123e-05,2]
[397998363,1765267844666,-906.0,7.123e-05,2]
[397998365,1765267844680,-1385.74,7.123e-05,2]
[397998366,1765267844689,-500.0,7.123e-05,2]
[397998368,1765267844698,-1075.54,7.123e-05,2]
[397998371,1765267844707,-500.0,7.123e-05,2]
[397998373,1765267844717,-1001.36,7.123e-05,2]
[397998375,1765267844726,-525.65,7.123e-05,2]
[397998376,1765267844735,-500.0,7.123e-05,2]
[397998379,1765267844745,-500.0,7.123e-05,2]
[397998380,1765267844754,-716.15,7.123e-05,2]
[397998382,1765267844763,-1618.4,7.123e-05,2]
[397998384,1765267844773,-500.0,7.123e-05,2]
[397998387,1765267844782,-500.0,7.123e-05,2]
[397998388,1765267844791,-500.0,7.123e-05,2]
[397998390,1765267844800,-500.0,7.123e-05,2]
[397998392,1765267844809,-1612.95,7.123e-05,2]
[397998394,1765267844818,-1511.9,7.123e-05,2]
[397998396,1765267844827,-500.0,7.123e-05,2]
[397998398,1765267844836,-500.0,7.123e-05,2]
[397998400,1765267844845,-500.0,7.123e-05,2]
[397998402,1765267844854,-1005.56,7.123e-05,2]
[397998404,1765267844863,-1528.08,7.123e-05,2]
[397998406,1765267844872,-500.0,7.123e-05,2]
[397998408,1765267844881,-500.0,7.123e-05,2]
[397998410,1765267844890,-1419.73,7.123e-05,2]
[397998412,1765267844899,-500.0,7.123e-05,2]
[397998415,1765267844909,-576.89438462,7.123e-05,2]
[397998417,1765267844918,-500.0,7.123e-05,2]
[397998419,1765267844928,-14567.01,7.123e-05,2]
[397998420,1765267844937,-901.99,7.123e-05,2]
[397998423,1765267844947,-611.15,7.123e-05,2]
[397998424,1765267844956,-502.05,7.123e-05,2]
[397998427,1765267844966,-561.36,7.123e-05,2]
[397998429,1765267844975,-501.13613445,7.123e-05,2]
[397998431,1765267844984,-500.0,7.123e-05,2]
[397998432,1765267844995,-883.65,7.123e-05,2]
[397998434,1765267845004,-547.61,7.123e-05,2]
[397998436,1765267845014,-6481.86,7.123e-05,2]
[397998439,1765267845024,-4904.1,7.123e-05,2]
[397998440,1765267845033,-682.66,7.123e-05,2]
[397998442,1765267845043,-500.0,7.123e-05,2]
[397998444,1765267845052,-1164.19,7.123e-05,2]
[397998446,1765267845062,-529.35871599,7.123e-05,2]
[397998448,1765267845072,-557.94,7.123e-05,2]
[397998450,1765267845081,-500.0,7.123e-05,2]
[397998452,1765267845090,-985.0,7.123e-05,2]
[397998454,1765267845100,-756.56,7.123e-05,2]
[397998456,1765267845109,-807.98,7.123e-05,2]
[397998458,1765267845118,-807.87,7.123e-05,2]
[397998460,1765267845127,-592.26,7.123e-05,2]
[397998462,1765267845137,-1079.36,7.123e-05,2]
[397998463,1765267845147,-540.99,7.123e-05,2]
[397998465,1765267845156,-4472.73,7.123e-05,2]
[397998467,1765267845165,-662.51,7.123e-05,2]
[397998469,1765267845176,-4144.72,7.123e-05,2]
[397998471,1765267845185,-592.85615394,7.123e-05,2]
[397998473,1765267845195,-500.0,7.123e-05,2]
[397998475,1765267845204,-49795.1,7.123e-05,2]
[397998477,1765267845214,-1144.33,7.123e-05,2]
[397998479,1765267845223,-6674.95,7.123e-05,2]
[397998481,1765267845233,-833.53,7.123e-05,2]
[397998483,1765267845243,-966.86,7.123e-05,2]
[397998485,1765267845253,-503.8,7.123e-05,2]
[397998487,1765267845264,-500.0,7.123e-05,2]
[397998489,1765267845274,-501.35486852,7.123e-05,2]
[397998491,1765267845284,-2117.07,7.123e-05,2]
[397998493,1765267845294,-507.49,7.123e-05,2]
[397998495,1765267845305,-570.82,7.123e-05,2]
[397998497,1765267845314,-500.75,7.123e-05,2]
[397998499,1765267845324,-500.0,7.123e-05,2]
[397998501,1765267845333,-1662.88,7.123e-05,2]
[397998503,1765267845343,-982.56,7.123e-05,2]
[397998505,1765267845352,-2809.51,7.123e-05,2]
[397998507,1765267845361,-925.76,7.123e-05,2]
[397998509,1765267845371,-500.50882155,7.123e-05,2]
[397998511,1765267845380,-1475.7,7.123e-05,2]
[397998513,1765267845389,-1274.38,7.123e-05,2]
[397998514,1765267845398,-526.96,7.123e-05,2]
[397998516,1765267845407,-500.0,7.123e-05,2]
[397998518,1765267845418,-593.55,7.123e-05,2]
[397998520,1765267845429,-2127.57,7.123e-05,2]
[397998522,1765267845438,-1302.93,7.123e-05,2]
[397998524,1765267845448,-1001.37,7.123e-05,2]
[397998526,1765267845457,-526.7,7.123e-05,2]
[397998528,1765267845468,-500.85874563,7.123e-05,2]
[397998530,1765267845479,-500.0,7.123e-05,2]
[397998532,1765267845489,-1183.06,7.123e-05,2]
[397998534,1765267845499,-500.83513154,7.123e-05,2]
[397998536,1765267845509,-1184.19,7.123e-05,2]
[397998538,1765267845518,-500.0,7.123e-05,2]
[397998540,1765267845527,-500.0,7.123e-05,2]
[397998543,1765267845537,-763.41,7.123e-05,2]
[397998544,1765267845547,-536.16,7.123e-05,2]
[397998546,1765267845556,-500.0,7.123e-05,2]
[397998548,1765267845565,-805.99,7.123e-05,2]
[397998550,1765267845575,-2840.83,7.123e-05,2]
[397998552,1765267845584,-2052.07,7.123e-05,2]
[397998554,1765267845594,-500.0,7.123e-05,2]
[397998556,1765267845603,-500.0,7.123e-05,2]
[397998558,1765267845613,-500.0,7.123e-05,2]
[397998560,1765267845622,-500.0,7.123e-05,2]
[397998562,1765267845632,-2316.74,7.123e-05,2]
[397998564,1765267845641,-500.0,7.123e-05,2]
[397998566,1765267845651,-500.0,7.123e-05,2]
[397998568,1765267845660,-9941.27,7.123e-05,2]
[397998570,1765267845670,-1445.66,7.123e-05,2]
[397998572,1765267845680,-15856.70816349,7.123e-05,2]
[397998649,1765267846406,-282.45762265,7.123e-05,2]
[397998651,1765267846418,-2464.73851065,7.123e-05,2]
[397998663,1765267846524,-342.55454446,7.123e-05,2]
[397999151,1765268124707,-187.466,6.099e-05,2]
[397999152,1765268124737,-273.32454239,6.161e-05,2]
[397999153,1765268124767,-300.0,6.222e-05,2]
[397999154,1765268602230,-1553.05217297,6.038e-05,2]
[397999155,1765268602259,-267.85805155,6.069e-05,2]
[397999156,1765268602287,-187.466,6.099e-05,2]
[397999157,1765268602316,-509.0,6.223e-05,2]
[397999158,1765268743088,-300.0,6.222e-05,2]
[397999159,1765268743118,-1383.30555778,6.223e-05,2]
[397999167,1765268940290,-300.0,6.122e-05,2]
[397999168,1765268940321,-266.91329459,6.123e-05,2]
[397999169,1765268942581,300.0,6.122e-05,2]
[397999170,1765269004359,508.0,6.123e-05,2]
[397999206,1765269032322,-4648.25,6.123e-05,2]
[397999207,1765269032392,-708.02923581,6.123e-05,2]